fUSD/lending_fUSD_20260622
["ID","MTS","AMOUNT","RATE_DAILY","PERIOD"]
[426065929,1782132698000,-500.0,0.00029315,2]
[426065918,1782132698000,-500.0,0.00029315,2]
[426065916,1782132698000,-500.0,0.00029315,2]
[426065898,1782132698000,-500.0,0.00029315,2]
[426065895,1782132698000,-608.20486898,0.00029315,2]
[426065901,1782132698000,-500.0,0.00029315,2]
[426065900,1782132698000,-500.0,0.00029315,2]
[426065905,1782132698000,-500.0,0.00029315,2]
[426065903,1782132698000,-500.0,0.00029315,2]
[426065907,1782132698000,-500.0,0.00029315,2]
[426065909,1782132698000,-571.89,0.00029315,2]
[426065912,1782132698000,-500.0,0.00029315,2]
[426065899,1782132698000,-738.63,0.00029315,2]
[426065910,1782132698000,-500.0,0.00029315,2]
[426065911,1782132698000,-500.0,0.00029315,2]
[426065908,1782132698000,-500.0,0.00029315,2]
[426065904,1782132698000,-500.0,0.00029315,2]
[426065915,1782132698000,-658.57,0.00029315,2]
[426065925,1782132698000,-500.0,0.00029315,2]
[426065914,1782132698000,-500.0,0.00029315,2]
[426065926,1782132698000,-500.0,0.00029315,2]
[426065913,1782132698000,-500.0,0.00029315,2]
[426065917,1782132698000,-500.0,0.00029315,2]
[426065958,1782132699000,-177.06564378,0.00029315,2]
[426065959,1782132699000,-724.98,0.00029315,2]
[426065957,1782132699000,-596.45,0.00029315,2]
[426065961,1782132699000,-500.0,0.00029315,2]
[426065963,1782132699000,-500.0,0.00029315,2]
[426065965,1782132699000,-242.25,0.00029315,2]
[426065968,1782132699000,-500.0,0.00029315,2]
[426065966,1782132699000,-210.89425019,0.00029315,2]
[426065964,1782132699000,-500.0,0.00029315,2]
[426065973,1782132699000,-500.0,0.00029315,2]
[426065970,1782132699000,-500.0,0.00029315,2]
[426065962,1782132699000,-500.0,0.00029315,2]
[426065967,1782132699000,-500.0,0.00029315,2]
[426065960,1782132699000,-773.21,0.00029315,2]
[426065948,1782132699000,-717.75,0.00029315,2]
[426065955,1782132699000,-536.15,0.00029315,2]
[426065951,1782132699000,-524.25,0.00029315,2]
[426065952,1782132699000,-500.0,0.00029315,2]
[426065953,1782132699000,-500.0,0.00029315,2]
[426065954,1782132699000,-500.0,0.00029315,2]
[426065945,1782132699000,-500.0,0.00029315,2]
[426065944,1782132699000,-512.40832213,0.00029315,2]
[426065946,1782132699000,-358.42,0.00029315,2]
[426065949,1782132699000,-500.0,0.00029315,2]
[426065950,1782132699000,-500.0,0.00029315,2]
[426065943,1782132699000,-500.0,0.00029315,2]
[426065947,1782132699000,-500.0,0.00029315,2]
[426065974,1782132699000,-518.24,0.00029315,2]
[426065956,1782132699000,-658.76,0.00029315,2]
[426065971,1782132699000,-500.0,0.00029315,2]
[426065969,1782132699000,-500.0,0.00029315,2]
[426065976,1782132699000,-500.0,0.00029315,2]
[426065972,1782132699000,-964.0,0.00029315,2]
[426066005,1782132699000,-4341.3,0.00029315,2]
[426066003,1782132699000,-176.806754,0.00029315,7]
[426065997,1782132699000,-500.0,0.00029315,2]
[426066002,1782132699000,-926.45,0.00029315,2]
[426066000,1782132699000,-762.765153,0.00029315,7]
[426065998,1782132699000,-1209.24,0.00029315,2]
[426066001,1782132699000,-500.0,0.00029315,2]
[426065996,1782132699000,-766.88,0.00029315,2]
[426065992,1782132699000,-500.0,0.00029315,2]
[426065994,1782132699000,-645.41,0.00029315,2]
[426065993,1782132699000,-500.0,0.00029315,2]
[426065995,1782132699000,-230.55080841,0.00029315,2]
[426065991,1782132699000,-457.52,0.00029315,2]
[426065990,1782132699000,-2823.9,0.00029315,2]
[426065999,1782132699000,-1589.11,0.00029315,2]
[426065989,1782132699000,-500.0,0.00029315,2]
[426065988,1782132699000,-500.0,0.00029315,2]
[426065977,1782132699000,-500.0,0.00029315,2]
[426065979,1782132699000,-506.89,0.00029315,2]
[426065975,1782132699000,-716.56,0.00029315,2]
[426066004,1782132699000,-762.765153,0.00029315,7]
[426065981,1782132699000,-345.69403249,0.00029315,2]
[426065984,1782132699000,-827.1,0.00029315,2]
[426065978,1782132699000,-500.0,0.00029315,2]
[426065980,1782132699000,-532.59,0.00029315,2]
[426065982,1782132699000,-1096.6,0.00029315,2]
[426065983,1782132699000,-1578.36,0.00029315,2]
[426065986,1782132699000,-500.0,0.00029315,2]
[426065985,1782132699000,-3740.4,0.00029315,2]
[426065987,1782132699000,-500.0,0.00029315,2]
[426066030,1782132700000,-254.579085,0.00029315,7]
[426066027,1782132700000,-151.0,0.00029315,7]
[426066031,1782132700000,-315.83668312,0.00029315,2]
[426066029,1782132700000,-500.0,0.00029315,2]
[426066026,1782132700000,-1057.14,0.00029315,2]
[426066021,1782132700000,-500.0,0.00029315,2]
[426066028,1782132700000,-151.0,0.00029315,7]
[426066041,1782132700000,-597.7,0.00029315,2]
[426066034,1782132700000,-151.0,0.00029315,7]
[426066037,1782132700000,-151.0,0.00029315,7]
[426066036,1782132700000,-254.579085,0.00029315,7]
[426066035,1782132700000,-500.0,0.00029315,2]
[426066038,1782132700000,-151.0,0.00029315,7]
[426066039,1782132700000,-151.0,0.00029315,7]
[426066024,1782132700000,-254.579085,0.00029315,7]
[426066033,1782132700000,-500.0,0.00029315,2]
[426066025,1782132700000,-522.024891,0.00029315,7]
[426066013,1782132700000,-500.0,0.00029315,2]
[426066020,1782132700000,-522.024891,0.00029315,7]
[426066008,1782132700000,-500.0,0.00029315,2]
[426066044,1782132700000,-151.0,0.00029315,7]
[426066006,1782132700000,-176.806754,0.00029315,7]
[426066012,1782132700000,-151.0,0.00029315,7]
[426066007,1782132700000,-762.765153,0.00029315,7]
[426066009,1782132700000,-176.806754,0.00029315,7]
[426066010,1782132700000,-762.765153,0.00029315,7]
[426066014,1782132700000,-604.61,0.00029315,2]
[426066011,1782132700000,-522.024891,0.00029315,7]
[426066015,1782132700000,-176.806754,0.00029315,7]
[426066016,1782132700000,-522.024891,0.00029315,7]
[426066017,1782132700000,-500.0,0.00029315,2]
[426066019,1782132700000,-254.579085,0.00029315,7]
[426066018,1782132700000,-1013.11,0.00029315,2]
[426066022,1782132700000,-500.0,0.00029315,2]
[426066023,1782132700000,-500.0,0.00029315,2]
[426066042,1782132700000,-196.180003,0.00029315,7]
[426066032,1782132700000,-151.0,0.00029315,7]
[426066040,1782132700000,-251.422748,0.00029315,7]
[426066064,1782132700000,-635.4,0.00029315,2]
[426066065,1782132700000,-221.82465,0.00029315,7]
[426066067,1782132700000,-221.82465,0.00029315,7]
[426066066,1782132700000,-500.0,0.00029315,2]
[426066069,1782132700000,-500.0,0.00029315,2]
[426066070,1782132700000,-160.08582855,0.00029315,2]
[426066068,1782132700000,-500.0,0.00029315,2]
[426066060,1782132700000,-500.0,0.00029315,2]
[426066071,1782132700000,-1668.304004,0.00029315,7]
[426066073,1782132700000,-1668.304004,0.00029315,7]
[426066075,1782132700000,-1668.304004,0.00029315,7]
[426066076,1782132700000,-500.0,0.00029315,2]
[426066074,1782132700000,-596.38,0.00029315,2]
[426066078,1782132700000,-500.0,0.00029315,2]
[426066079,1782132700000,-1668.304004,0.00029315,7]
[426066043,1782132700000,-151.0,0.00029315,7]
[426066072,1782132700000,-750.36,0.00029315,2]
[426066061,1782132700000,-151.0,0.00029315,7]
[426066077,1782132700000,-500.0,0.00029315,2]
[426066062,1782132700000,-221.82465,0.00029315,7]
[426066045,1782132700000,-251.422748,0.00029315,7]
[426066059,1782132700000,-824.11,0.00029315,2]
[426066049,1782132700000,-251.422748,0.00029315,7]
[426066046,1782132700000,-500.0,0.00029315,2]
[426066050,1782132700000,-151.0,0.00029315,7]
[426066048,1782132700000,-151.0,0.00029315,7]
[426066054,1782132700000,-500.0,0.00029315,2]
[426066051,1782132700000,-500.0,0.00029315,2]
[426066047,1782132700000,-923.61,0.00029315,2]
[426066055,1782132700000,-151.0,0.00029315,7]
[426066056,1782132700000,-1542.67,0.00029315,2]
[426066063,1782132700000,-154.348376,0.00029315,7]
[426066053,1782132700000,-500.0,0.00029315,2]
[426066057,1782132700000,-151.0,0.00029315,7]
[426066052,1782132700000,-251.422748,0.00029315,7]
[426066058,1782132700000,-221.82465,0.00029315,7]
[426066121,1782132701000,-1194.87,0.00029315,2]
[426066123,1782132701000,-572.74,0.00029315,2]
[426066124,1782132701000,-855.41,0.00029315,2]
[426066119,1782132701000,-772.24,0.00029315,2]
[426066117,1782132701000,-647.54,0.00029315,2]
[426066116,1782132701000,-500.0,0.00029315,2]
[426066107,1782132701000,-500.0,0.00029315,2]
[426066106,1782132701000,-569.52,0.00029315,2]
[426066111,1782132701000,-500.0,0.00029315,2]
[426066120,1782132701000,-500.0,0.00029315,2]
[426066109,1782132701000,-528.45,0.00029315,2]
[426066118,1782132701000,-500.0,0.00029315,2]
[426066122,1782132701000,-882.55,0.00029315,2]
[426066137,1782132701000,-3415.05,0.00029315,2]
[426066126,1782132701000,-500.0,0.00029315,2]
[426066138,1782132701000,-890.14,0.00029315,2]
[426066139,1782132701000,-500.0,0.00029315,2]
[426066130,1782132701000,-500.0,0.00029315,2]
[426066136,1782132701000,-500.0,0.00029315,2]
[426066135,1782132701000,-500.0,0.00029315,2]
[426066132,1782132701000,-680.32,0.00029315,2]
[426066127,1782132701000,-569.08,0.00029315,2]
[426066128,1782132701000,-500.0,0.00029315,2]
[426066129,1782132701000,-1202.22,0.00029315,2]
[426066103,1782132701000,-611.49860914,0.00029315,2]
[426066133,1782132701000,-934.58,0.00029315,2]
[426066125,1782132701000,-622.93,0.00029315,2]
[426066108,1782132701000,-637.77,0.00029315,2]
[426066087,1782132701000,-566.93,0.00029315,2]
[426066110,1782132701000,-500.0,0.00029315,2]
[426066131,1782132701000,-500.0,0.00029315,2]
[426066080,1782132701000,-536.32,0.00029315,2]
[426066089,1782132701000,-500.0,0.00029315,2]
[426066081,1782132701000,-4511.56,0.00029315,2]
[426066084,1782132701000,-500.0,0.00029315,2]
[426066086,1782132701000,-500.0,0.00029315,2]
[426066088,1782132701000,-1674.8,0.00029315,2]
[426066085,1782132701000,-500.0,0.00029315,2]
[426066082,1782132701000,-773.34,0.00029315,2]
[426066090,1782132701000,-500.0,0.00029315,2]
[426066083,1782132701000,-1625.31,0.00029315,2]
[426066091,1782132701000,-824.69,0.00029315,2]
[426066102,1782132701000,-555.85,0.00029315,2]
[426066095,1782132701000,-1024.72,0.00029315,2]
[426066092,1782132701000,-2000.0,0.00029315,2]
[426066094,1782132701000,-3964.2,0.00029315,2]
[426066097,1782132701000,-500.0,0.00029315,2]
[426066099,1782132701000,-290.64,0.00029315,2]
[426066098,1782132701000,-500.0,0.00029315,2]
[426066100,1782132701000,-500.0,0.00029315,2]
[426066096,1782132701000,-500.0,0.00029315,2]
[426066101,1782132701000,-219.56,0.00029315,2]
[426066093,1782132701000,-500.0,0.00029315,2]
[426066104,1782132701000,-500.0,0.00029315,2]
[426066115,1782132701000,-500.0,0.00029315,2]
[426066105,1782132701000,-500.0,0.00029315,2]
[426066112,1782132701000,-663.75,0.00029315,2]
[426066113,1782132701000,-713.09,0.00029315,2]
[426066134,1782132701000,-500.0,0.00029315,2]
[426066114,1782132701000,-500.0,0.00029315,2]
[426066140,1782132701000,-526.9,0.00029315,2]
[426066197,1782132701000,-561.19719087,0.00029588,2]
[426066172,1782132701000,-723.63,0.00029315,2]
[426066173,1782132701000,-695.99,0.00029315,2]
[426066176,1782132701000,-606.62,0.00029315,2]
[426066177,1782132701000,-500.0,0.00029315,2]
[426066178,1782132701000,-500.0,0.00029315,2]
[426066188,1782132701000,-4456.0,0.00029362,5]
[426066184,1782132701000,-500.0,0.00029315,2]
[426066180,1782132701000,-152.2375319,0.00029315,2]
[426066179,1782132701000,-552.84,0.00029315,2]
[426066185,1782132701000,-410.0,0.00029315,2]
[426066181,1782132701000,-500.0,0.00029315,2]
[426066182,1782132701000,-500.0,0.00029315,2]
[426066187,1782132701000,-3399.0,0.00029352,10]
[426066183,1782132701000,-197.38,0.00029315,2]
[426066186,1782132701000,-642.58,0.00029329,30]
[426066193,1782132701000,-208.0,0.00029534,2]
[426066190,1782132701000,-192.78,0.00029479,30]
[426066194,1782132701000,-150.0,0.00029534,2]
[426066191,1782132701000,-619.15,0.00029509,30]
[426066196,1782132701000,-642.58,0.00029548,7]
[426066200,1782132701000,-500.0,0.00029589,2]
[426066189,1782132701000,-636.7,0.00029468,30]
[426066192,1782132701000,-425.63,0.00029511,30]
[426066198,1782132701000,-643.69,0.00029589,2]
[426066141,1782132701000,-154.95920354,0.00029315,2]
[426066195,1782132701000,-167.45286351,0.00029541,2]
[426066171,1782132701000,-707.33,0.00029315,2]
[426066170,1782132701000,-847.56,0.00029315,2]
[426066199,1782132701000,-535.03,0.00029589,2]
[426066164,1782132701000,-839.47,0.00029315,2]
[426066168,1782132701000,-500.0,0.00029315,2]
[426066143,1782132701000,-739.58,0.00029315,2]
[426066142,1782132701000,-500.0,0.00029315,2]
[426066145,1782132701000,-500.0,0.00029315,2]
[426066144,1782132701000,-541.69,0.00029315,2]
[426066150,1782132701000,-500.0,0.00029315,2]
[426066147,1782132701000,-500.0,0.00029315,2]
[426066148,1782132701000,-1885.55,0.00029315,2]
[426066149,1782132701000,-309.44227249,0.00029315,2]
[426066162,1782132701000,-4712.54,0.00029315,2]
[426066151,1782132701000,-500.0,0.00029315,2]
[426066155,1782132701000,-2231.74,0.00029315,2]
[426066157,1782132701000,-500.0,0.00029315,2]
[426066154,1782132701000,-500.0,0.00029315,2]
[426066146,1782132701000,-3873.02,0.00029315,2]
[426066156,1782132701000,-500.0,0.00029315,2]
[426066163,1782132701000,-500.0,0.00029315,2]
[426066166,1782132701000,-500.0,0.00029315,2]
[426066169,1782132701000,-944.56,0.00029315,2]
[426066175,1782132701000,-500.0,0.00029315,2]
[426066161,1782132701000,-500.0,0.00029315,2]
[426066174,1782132701000,-500.0,0.00029315,2]
[426066167,1782132701000,-1460.48,0.00029315,2]
[426066158,1782132701000,-1188.04,0.00029315,2]
[426066152,1782132701000,-700.97,0.00029315,2]
[426066160,1782132701000,-545.6,0.00029315,2]
[426066159,1782132701000,-466.14782153,0.00029315,2]
[426066153,1782132701000,-2159.89,0.00029315,2]
[426066165,1782132701000,-481.2584685,0.00029315,2]
[426066241,1782132702000,-500.0,0.00029589,2]
[426066243,1782132702000,-500.0,0.00029589,2]
[426066240,1782132702000,-500.0,0.00029589,2]
[426066238,1782132702000,-293.3307542,0.00029589,2]
[426066231,1782132702000,-500.0,0.00029589,2]
[426066237,1782132702000,-500.0,0.00029589,2]
[426066236,1782132702000,-500.0,0.00029589,2]
[426066235,1782132702000,-738.63,0.00029589,2]
[426066234,1782132702000,-500.0,0.00029589,2]
[426066233,1782132702000,-500.0,0.00029589,2]
[426066239,1782132702000,-500.0,0.00029589,2]
[426066245,1782132702000,-571.89,0.00029589,2]
[426066249,1782132702000,-500.0,0.00029589,2]
[426066242,1782132702000,-500.0,0.00029589,2]
[426066244,1782132702000,-500.0,0.00029589,2]
[426066246,1782132702000,-500.0,0.00029589,2]
[426066248,1782132702000,-500.0,0.00029589,2]
[426066251,1782132702000,-658.57,0.00029589,2]
[426066252,1782132702000,-500.0,0.00029589,2]
[426066253,1782132702000,-500.0,0.00029589,2]
[426066250,1782132702000,-500.0,0.00029589,2]
[426066254,1782132702000,-500.0,0.00029589,2]
[426066255,1782132702000,-500.0,0.00029589,2]
[426066257,1782132702000,-500.0,0.00029589,2]
[426066226,1782132702000,-680.81,0.00029589,2]
[426066247,1782132702000,-500.0,0.00029589,2]
[426066227,1782132702000,-500.0,0.00029589,2]
[426066216,1782132702000,-500.0,0.00029589,2]
[426066229,1782132702000,-500.0,0.00029589,2]
[426066201,1782132702000,-500.0,0.00029589,2]
[426066202,1782132702000,-624.62438336,0.00029589,2]
[426066204,1782132702000,-500.0,0.00029589,2]
[426066203,1782132702000,-500.0,0.00029589,2]
[426066205,1782132702000,-500.0,0.00029589,2]
[426066206,1782132702000,-500.0,0.00029589,2]
[426066210,1782132702000,-500.0,0.00029589,2]
[426066208,1782132702000,-563.6723152,0.00029589,2]
[426066207,1782132702000,-500.0,0.00029589,2]
[426066212,1782132702000,-500.0,0.00029589,2]
[426066211,1782132702000,-809.71,0.00029589,2]
[426066209,1782132702000,-636.01,0.00029589,2]
[426066225,1782132702000,-623.74,0.00029589,2]
[426066217,1782132702000,-500.0,0.00029589,2]
[426066214,1782132702000,-500.0,0.00029589,2]
[426066218,1782132702000,-248.08654079,0.00029589,2]
[426066213,1782132702000,-500.0,0.00029589,2]
[426066219,1782132702000,-500.0,0.00029589,2]
[426066223,1782132702000,-500.0,0.00029589,2]
[426066222,1782132702000,-500.0,0.00029589,2]
[426066220,1782132702000,-571.76,0.00029589,2]
[426066221,1782132702000,-309.06607059,0.00029589,2]
[426066224,1782132702000,-500.0,0.00029589,2]
[426066232,1782132702000,-530.66,0.00029589,2]
[426066228,1782132702000,-500.0,0.00029589,2]
[426066230,1782132702000,-500.0,0.00029589,2]
[426066215,1782132702000,-647.6,0.00029589,2]
[426066256,1782132702000,-900.21,0.00029589,2]
[426066259,1782132702000,-215.68053972,0.00029589,2]
[426066258,1782132702000,-500.0,0.00029589,2]
[426066291,1782132702000,-724.98,0.00029589,2]
[426066293,1782132702000,-151.0,0.00029589,7]
[426066290,1782132702000,-151.0,0.00029589,7]
[426066294,1782132702000,-443.88924287,0.00029589,2]
[426066296,1782132702000,-385.31523523,0.00029589,2]
[426066295,1782132702000,-500.0,0.00029589,2]
[426066298,1782132702000,-500.0,0.00029589,2]
[426066305,1782132702000,-159.104499,0.00029589,7]
[426066303,1782132702000,-500.0,0.00029589,2]
[426066299,1782132702000,-151.0,0.00029589,7]
[426066302,1782132702000,-500.0,0.00029589,2]
[426066301,1782132702000,-500.0,0.00029589,2]
[426066297,1782132702000,-500.0,0.00029589,2]
[426066300,1782132702000,-500.0,0.00029589,2]
[426066306,1782132702000,-500.0,0.00029589,2]
[426066307,1782132702000,-518.24,0.00029589,2]
[426066309,1782132702000,-151.0,0.00029589,7]
[426066312,1782132702000,-716.56,0.00029589,2]
[426066310,1782132702000,-153.931746,0.00029589,7]
[426066311,1782132702000,-159.104499,0.00029589,7]
[426066314,1782132702000,-500.0,0.00029589,2]
[426066308,1782132702000,-159.104499,0.00029589,7]
[426066315,1782132702000,-500.0,0.00029589,2]
[426066313,1782132702000,-159.104499,0.00029589,7]
[426066269,1782132702000,-1174.76,0.00029589,2]
[426066287,1782132702000,-536.15,0.00029589,2]
[426066285,1782132702000,-500.0,0.00029589,2]
[426066304,1782132702000,-964.0,0.00029589,2]
[426066288,1782132702000,-658.76,0.00029589,2]
[426066289,1782132702000,-596.45,0.00029589,2]
[426066262,1782132702000,-500.0,0.00029589,2]
[426066260,1782132702000,-158.93602615,0.00029589,2]
[426066263,1782132702000,-1119.11,0.00029589,2]
[426066266,1782132702000,-500.0,0.00029589,2]
[426066268,1782132702000,-500.0,0.00029589,2]
[426066265,1782132702000,-489.73681231,0.00029589,2]
[426066264,1782132702000,-500.0,0.00029589,2]
[426066267,1782132702000,-1240.13,0.00029589,2]
[426066271,1782132702000,-592.06406636,0.00029589,2]
[426066281,1782132702000,-500.0,0.00029589,2]
[426066273,1782132702000,-514.55,0.00029589,2]
[426066270,1782132702000,-716.59,0.00029589,2]
[426066261,1782132702000,-574.19992288,0.00029589,2]
[426066274,1782132702000,-290.68182822,0.00029589,2]
[426066272,1782132702000,-500.0,0.00029589,2]
[426066292,1782132702000,-773.21,0.00029589,2]
[426066282,1782132702000,-204.66701388,0.00029589,2]
[426066286,1782132702000,-500.0,0.00029589,2]
[426066283,1782132702000,-524.25,0.00029589,2]
[426066280,1782132702000,-717.75,0.00029589,2]
[426066284,1782132702000,-256.88,0.00029589,2]
[426066278,1782132702000,-500.0,0.00029589,2]
[426066279,1782132702000,-500.0,0.00029589,2]
[426066277,1782132702000,-422.04553407,0.00029589,2]
[426066275,1782132702000,-500.0,0.00029589,2]
[426066276,1782132702000,-500.0,0.00029589,2]
[426066358,1782132703000,-500.0,0.00029589,2]
[426066350,1782132703000,-312.46620479,0.00029589,2]
[426066353,1782132703000,-604.61,0.00029589,2]
[426066343,1782132703000,-220.236029,0.00029589,7]
[426066355,1782132703000,-479.4508262,0.00029589,2]
[426066361,1782132703000,-500.0,0.00029589,2]
[426066354,1782132703000,-726.936809,0.00029589,7]
[426066342,1782132703000,-556.397013,0.00029589,7]
[426066362,1782132703000,-1057.14,0.00029589,2]
[426066352,1782132703000,-500.0,0.00029589,2]
[426066357,1782132703000,-726.936809,0.00029589,7]
[426066360,1782132703000,-726.936809,0.00029589,7]
[426066365,1782132703000,-500.0,0.00029589,2]
[426066351,1782132703000,-726.936809,0.00029589,7]
[426066356,1782132703000,-1013.11,0.00029589,2]
[426066366,1782132703000,-597.7,0.00029589,2]
[426066368,1782132703000,-923.61,0.00029589,2]
[426066363,1782132703000,-500.0,0.00029589,2]
[426066367,1782132703000,-500.0,0.00029589,2]
[426066364,1782132703000,-497.80035476,0.00029589,2]
[426066373,1782132703000,-824.11,0.00029589,2]
[426066370,1782132703000,-500.0,0.00029589,2]
[426066369,1782132703000,-500.0,0.00029589,2]
[426066371,1782132703000,-500.0,0.00029589,2]
[426066339,1782132703000,-220.236029,0.00029589,7]
[426066359,1782132703000,-500.0,0.00029589,2]
[426066347,1782132703000,-500.0,0.00029589,2]
[426066317,1782132703000,-500.0,0.00029589,2]
[426066341,1782132703000,-766.88,0.00029589,2]
[426066316,1782132703000,-151.0,0.00029589,7]
[426066325,1782132703000,-500.0,0.00029589,2]
[426066322,1782132703000,-1578.36,0.00029589,2]
[426066327,1782132703000,-500.0,0.00029589,2]
[426066324,1782132703000,-3740.4,0.00029589,2]
[426066318,1782132703000,-259.94208,0.00029589,7]
[426066319,1782132703000,-506.89,0.00029589,2]
[426066321,1782132703000,-1096.6,0.00029589,2]
[426066328,1782132703000,-500.0,0.00029589,2]
[426066326,1782132703000,-500.0,0.00029589,2]
[426066323,1782132703000,-827.1,0.00029589,2]
[426066320,1782132703000,-532.59,0.00029589,2]
[426066345,1782132703000,-1589.11,0.00029589,2]
[426066329,1782132703000,-2823.9,0.00029589,2]
[426066332,1782132703000,-500.0,0.00029589,2]
[426066331,1782132703000,-500.0,0.00029589,2]
[426066330,1782132703000,-151.0,0.00029589,7]
[426066334,1782132703000,-220.236029,0.00029589,7]
[426066338,1782132703000,-556.397013,0.00029589,7]
[426066336,1782132703000,-556.397013,0.00029589,7]
[426066333,1782132703000,-151.0,0.00029589,7]
[426066337,1782132703000,-220.236029,0.00029589,7]
[426066340,1782132703000,-500.0,0.00029589,2]
[426066349,1782132703000,-4341.3,0.00029589,2]
[426066344,1782132703000,-1209.24,0.00029589,2]
[426066348,1782132703000,-926.45,0.00029589,2]
[426066335,1782132703000,-645.41,0.00029589,2]
[426066372,1782132703000,-1542.67,0.00029589,2]
[426066346,1782132703000,-556.397013,0.00029589,7]
[426066377,1782132703000,-500.0,0.00029589,2]
[426066400,1782132703000,-500.0,0.00029589,2]
[426066399,1782132703000,-1024.72,0.00029589,2]
[426066402,1782132703000,-500.0,0.00029589,2]
[426066405,1782132703000,-500.0,0.00029589,2]
[426066410,1782132703000,-528.45,0.00029589,2]
[426066418,1782132703000,-647.54,0.00029589,2]
[426066413,1782132703000,-663.75,0.00029589,2]
[426066414,1782132703000,-713.09,0.00029589,2]
[426066412,1782132703000,-500.0,0.00029589,2]
[426066421,1782132703000,-500.0,0.00029589,2]
[426066417,1782132703000,-203.02583618,0.00029589,2]
[426066415,1782132703000,-500.0,0.00029589,2]
[426066401,1782132703000,-538.81275676,0.00029589,2]
[426066411,1782132703000,-536.76716849,0.00029589,2]
[426066420,1782132703000,-772.24,0.00029589,2]
[426066416,1782132703000,-500.0,0.00029589,2]
[426066423,1782132703000,-882.55,0.00029589,2]
[426066422,1782132703000,-1194.87,0.00029589,2]
[426066426,1782132703000,-622.93,0.00029589,2]
[426066424,1782132703000,-572.74,0.00029589,2]
[426066425,1782132703000,-855.41,0.00029589,2]
[426066429,1782132703000,-500.0,0.00029589,2]
[426066427,1782132703000,-500.0,0.00029589,2]
[426066431,1782132703000,-500.0,0.00029589,2]
[426066430,1782132703000,-1202.22,0.00029589,2]
[426066375,1782132703000,-635.4,0.00029589,2]
[426066419,1782132703000,-500.0,0.00029589,2]
[426066404,1782132703000,-555.85,0.00029589,2]
[426066428,1782132703000,-569.08,0.00029589,2]
[426066407,1782132703000,-569.52,0.00029589,2]
[426066379,1782132703000,-750.36,0.00029589,2]
[426066374,1782132703000,-500.0,0.00029589,2]
[426066378,1782132703000,-500.0,0.00029589,2]
[426066376,1782132703000,-500.0,0.00029589,2]
[426066382,1782132703000,-500.0,0.00029589,2]
[426066380,1782132703000,-596.38,0.00029589,2]
[426066381,1782132703000,-500.0,0.00029589,2]
[426066403,1782132703000,-500.0,0.00029589,2]
[426066384,1782132703000,-536.32,0.00029589,2]
[426066395,1782132703000,-824.69,0.00029589,2]
[426066394,1782132703000,-417.75,0.00029589,2]
[426066386,1782132703000,-773.34,0.00029589,2]
[426066390,1782132703000,-500.0,0.00029589,2]
[426066383,1782132703000,-437.01930004,0.00029589,2]
[426066396,1782132703000,-2000.0,0.00029589,2]